fUSD/lending_fUSD_20240531
["ID","MTS","AMOUNT","RATE_DAILY","PERIOD"]
[328337483,1717186244696,-199.99866363,0.00032876,11]
[328337485,1717186244707,-199.36515274,0.00032876,11]
[328337487,1717186244716,-500.0,0.00032876,11]
[328337489,1717186244726,-446.99480679,0.00032876,11]
[328337604,1717186245881,-257.58103386,0.0002,2]
[328337606,1717186245891,-53.00519321,0.00032876,11]
[328337609,1717186245901,-500.0,0.00032876,11]
[328337611,1717186245910,-500.0,0.00032876,11]
[328337613,1717186245919,-500.0,0.00032876,11]
[328337615,1717186245928,-500.0,0.00032876,11]
[328337617,1717186245937,-391.44,0.00032876,11]
[328337619,1717186245946,-500.0,0.00032876,11]
[328337621,1717186245956,-195.33806919,0.00032876,11]
[328337623,1717186245967,-304.66193081,0.00032876,11]
[328337625,1717186245976,-342.43804451,0.00032876,11]
[328337628,1717186245988,-157.56195549,0.00032876,11]
[328337630,1717186246002,-500.0,0.00032876,11]
[328337632,1717186246012,-261.79908076,0.00032876,11]
[328337634,1717186246021,-500.0,0.00032876,11]
[328337636,1717186246030,-500.0,0.00032876,11]
[328337637,1717186246040,-500.0,0.00032876,11]
[328337639,1717186246050,-44.07396375,0.00032876,11]
[328337642,1717186246061,-455.92603625,0.00032876,11]
[328337644,1717186246070,-500.0,0.00032876,11]
[328337646,1717186246080,-151.795443,0.00032876,7]
[328337648,1717186246089,-500.0,0.00032876,11]
[328337650,1717186246099,-500.0,0.00032876,11]
[328337664,1717186246225,-500.0,0.00032876,11]
[328337666,1717186246235,-500.0,0.00032876,11]
[328337668,1717186246244,-287.92852075,0.00032876,11]
[328337701,1717186246753,-325.02147925,0.00032876,11]
[328337703,1717186246761,-500.0,0.00032876,11]
[328337704,1717186246770,-500.0,0.00032876,11]
[328337706,1717186246779,-500.0,0.00032876,11]
[328337708,1717186246789,-500.0,0.00032876,11]
[328337709,1717186246798,-500.0,0.00032876,11]
[328337711,1717186246807,-224.97852075,0.00032876,11]
[328337716,1717186246866,-275.02147925,0.00032876,11]
[328337717,1717186246874,-500.0,0.00032876,11]
[328337719,1717186246884,-500.0,0.00032876,11]
[328337721,1717186246893,-175.6692624,0.00032876,11]
[328338020,1717186251977,242.72524047,0.0001168,2]
[328338021,1717186296549,541339.03800512,0.0001168,2]
[328338034,1717187142178,-1424.6153871,0.00016996,2]
[328338044,1717187432012,-155.0,0.00016891,2]
[328338045,1717187432022,-2226.71420873,0.00016891,2]
[328338046,1717187432031,-1225.08551802,0.00016892,2]
[328338047,1717187432079,-2022.42696913,0.00016892,2]
[328338048,1717187432148,-1712.57125797,0.00016892,2]
[328338049,1717187432213,-768.94693813,0.00016892,2]
[328338050,1717187432224,-2464.76794777,0.00016892,2]
[328338071,1717187438053,-769.94309993,0.00016892,2]
[328338216,1717187440501,-13.64326905,0.00016892,2]
[328338217,1717187440511,-207.8438008,0.0001698,2]
[328338218,1717187440521,-718.3503353,0.0001698,2]
[328338219,1717187440532,-251.23012888,0.0001698,2]
[328338220,1717187440544,-150.0,0.00016981,2]
[328338221,1717187440553,-410.5918966,0.00016982,2]
[328338222,1717187440563,-234.70114228,0.00016982,2]
[328338223,1717187440572,-4284.68586271,0.00016982,2]
[328338224,1717187440581,-162.97578809,0.00016983,2]
[328338225,1717187440591,-338.00149089,0.00016983,2]
[328338226,1717187440600,-7530.16194666,0.00016983,2]
[328338227,1717187440610,-2332.82498739,0.00016999,2]
[328338228,1717187440621,-1023.5172713,0.00017,2]
[328338229,1717187440643,-628.46,0.00017534,2]
[328338230,1717187440653,-210.0,0.00018679,2]
[328338231,1717187440664,-499.99,0.00019452,2]
[328338232,1717187440674,-257.5929249,0.0002,2]
[328338233,1717187440684,-293.0,0.00020547,2]
[328338234,1717187440694,-187.20328758,0.00020559,2]
[328338235,1717187440704,-503.0,0.000233,3]
[328338236,1717187440713,-450.13,0.00027546,2]
[328338237,1717187440723,-250.0,0.00027588,2]
[328338238,1717187440733,-3106.71,0.00028395,2]
[328338239,1717187440742,-211.22,0.00028661,2]
[328338240,1717187440751,-450.13,0.00029809,2]
[328338241,1717187440761,-409.96,0.00030876,2]
[328338242,1717187440770,-3106.71,0.00031135,2]
[328338243,1717187440780,-314.36267157,0.00031633,7]
[328338244,1717187440790,-176.339,0.00031633,2]
[328338245,1717187440803,-700.0,0.000319,11]
[328338246,1717187440812,-1500.0,0.00032,11]
[328338247,1717187440822,-450.13,0.00032073,2]
[328338248,1717187440832,-2200.0,0.000321,11]
[328338249,1717187440842,-3000.0,0.000322,11]
[328338250,1717187440852,-211.22,0.00032243,2]
[328338251,1717187440861,-3700.0,0.000323,11]
[328338252,1717187440871,-700.0,0.000324,11]
[328338253,1717187440881,-155.57019678,0.00032428,7]
[328338254,1717187440891,-746.54,0.00032466,2]
[328338255,1717187440900,-300.63,0.00032466,2]
[328338256,1717187440910,-352.63,0.00032466,2]
[328338257,1717187440919,-327.46,0.00032466,2]
[328338258,1717187440933,-150.0,0.00032466,2]
[328338259,1717187440943,-150.0,0.00032466,2]
[328338260,1717187440952,-150.0,0.00032466,2]
[328338261,1717187440961,-352.63,0.00032466,2]
[328338262,1717187440971,-351.94,0.00032466,2]
[328338263,1717187440981,-150.0,0.00032466,2]
[328338264,1717187440990,-150.0,0.00032466,2]
[328338265,1717187441000,-150.0,0.00032466,2]
[328338266,1717187441009,-300.0,0.00032466,2]
[328338267,1717187441019,-700.0,0.000325,11]
[328338268,1717187441029,-779.31,0.00032548,30]
[328338269,1717187441038,-519.63424,0.0003255,2]
[328338270,1717187441051,-461.79408204,0.0003258,10]
[328338271,1717187441060,-6417.41961077,0.0003258,10]
[328338272,1717187441069,-700.0,0.000326,11]
[328338273,1717187441079,-355.81817322,0.00032618,2]
[328338274,1717187441088,-461.79408198,0.00032649,10]
[328338275,1717187441097,-6417.41961072,0.00032649,10]
[328338276,1717187441107,-263.18762538,0.00032669,2]
[328338277,1717187441116,-4058.87330608,0.0003267,2]
[328338278,1717187441126,-151.17,0.0003267,2]
[328338279,1717187441136,-19798.25202748,0.00032679,4]
[328338280,1717187441149,-378.92,0.00032679,4]
[328338308,1717187442918,-338.61711664,0.00032679,4]
[328338315,1717187443268,-3754.0,0.00032679,4]
[328338326,1717187446040,-21000.0,0.00032679,4]
[328338327,1717187446102,-5614.1917692,0.00032679,4]
[328338328,1717187446115,-6952.95696847,0.00032679,4]
[328338329,1717187446126,-2042.47404241,0.00032679,4]
[328338330,1717187500904,887.94496778,0.00032679,90]
[328338331,1717187599488,-1259.69280578,0.00016894,2]
[328338332,1717187599514,-155.0,0.00016894,2]
[328338333,1717187599536,-791.11871029,0.00016895,2]
[328338334,1717187599561,-311.34090155,0.00016896,2]
[328338335,1717187599585,-310.020761,0.00016896,2]
[328338336,1717187599607,-481.22492057,0.00016992,2]
[328338337,1717187599630,-3095.99132127,0.00016992,2]
[328338339,1717187652054,180.4359283,0.00016992,2]
[328338340,1717187664067,180.4359283,0.00016992,2]
[328338341,1717187678075,234.73872294,0.00016986,2]
[328338342,1717187796386,730180.32295549,0.00013,2]
[328338343,1717187811092,180.4359283,0.00013,2]
[328338345,1717187827092,180.17364185,0.00013,2]
[328338346,1717187834923,4228.86773996,0.0003,30]
[328338348,1717188195549,157.060105,0.00034,90]
[328338349,1717188204805,157.060105,0.00034,90]
[328338350,1717188205924,157.060105,0.00034,90]
[328338351,1717188206597,157.060105,0.00034,90]
[328338352,1717188207322,157.060105,0.00034,90]
[328338353,1717188208027,157.060105,0.00034,90]
[328338354,1717188219558,157.060105,0.00034,90]
[328338355,1717188220551,157.060105,0.00034,90]
[328338356,1717188222204,157.060105,0.00034,90]
[328338357,1717188267418,172.060105,0.00034,92]
[328338362,1717188344132,-155.0,0.00016602,2]
[328338363,1717188344150,-155.0,0.00016602,2]
[328338364,1717188344169,-150.0,0.00016603,2]
[328338365,1717188344188,-162.3456247,0.00016633,2]
[328338366,1717188344206,-162.97578809,0.00016634,2]
[328338367,1717188344224,-251.23012888,0.00016635,2]
[328338368,1717188344243,-440.51779138,0.00016645,2]
[328338390,1717188632117,-155.0,0.00016642,2]
[328338391,1717188632127,-153.4,0.00016642,2]
[328338392,1717188632159,-491.24661214,0.00016642,2]
[328338393,1717188632167,-940.66738669,0.00016643,2]
[328338394,1717188632177,-277.83254392,0.00016645,2]
[328338395,1717188632186,-2610.89507478,0.00016646,2]
[328338396,1717188632196,-967.13216826,0.00016896,2]
[328338397,1717188632206,-92844.27256858,0.00016986,2]
[328338398,1717188632216,-1361.5753028,0.00016996,2]
[328338399,1717188632225,-895.06366229,0.00016996,2]
[328338400,1717188632235,-117127.34145978,0.00016996,2]
[328338401,1717188632246,-725.19911245,0.00016996,2]
[328338402,1717188632332,-4774.57106677,0.00016996,2]
[328338403,1717188632435,-18376.87853337,0.00016996,2]
[328338405,1717188632446,-1524.10623217,0.00016996,2]
[328338407,1717188632457,-150454.20379991,0.00016996,2]
[328338408,1717188632469,-82982.30087,0.00016996,2]
[328338440,1717188638131,-707.87206076,0.00016996,2]
[328338441,1717188638147,-86928.52788374,0.00016996,2]
[328338442,1717188638156,-410.2235979,0.00016996,2]
[328338443,1717188638165,-550.19946798,0.00016996,2]
[328338444,1717188638174,-299.26588838,0.00016996,2]
[328338445,1717188638183,-30058.911,0.00016996,2]
[328338446,1717188638192,-257.58103386,0.0002,2]
[328338447,1717188638201,-187.20328758,0.00020971,2]
[328338448,1717188638210,-967.13216824,0.00020972,2]
[328338449,1717188638219,-170.62,0.00024287,2]
[328338450,1717188638227,-156.93,0.00024384,2]
[328338451,1717188638236,-157.43,0.00024384,2]
[328338452,1717188638245,-418.49375025,0.00024788,2]
[328338453,1717188638254,-12510.18447769,0.00024798,2]
[328338454,1717188638263,-12510.1844776,0.00024798,2]
[328338455,1717188638271,-12510.1844776,0.00024798,2]
[328338456,1717188638280,-12510.1844776,0.00024798,2]
[328338457,1717188638290,-12510.1844776,0.00024798,2]
[328338458,1717188638299,-1074.93081204,0.00024799,2]
[328338459,1717188638308,-1074.93081204,0.00024799,2]
[328338460,1717188638317,-1074.93081204,0.00024799,2]
[328338461,1717188638326,-1074.93081204,0.00024799,2]
[328338462,1717188638335,-327.28,0.00024837,2]
[328338463,1717188638343,-967.13216824,0.00025047,2]
[328338464,1717188638352,-23900.0,0.00025285,2]
[328338465,1717188638362,-176.339,0.00025285,2]
[328338466,1717188638371,-500.0,0.00025348,2]
[328338467,1717188638380,-250.0,0.00025907,2]
[328338468,1717188638389,-250.0,0.00025916,2]
[328338469,1717188638399,-1074.93081204,0.00025954,2]
[328338470,1717188638408,-12510.1844776,0.00025954,2]
[328338471,1717188638417,-151.0,0.00025954,7]
[328338472,1717188638426,-151.0,0.00025954,7]
[328338473,1717188638435,-151.0,0.00025954,7]
[328338474,1717188638444,-151.0,0.00025954,7]
[328338475,1717188638454,-151.0,0.00025954,7]
[328338476,1717188638464,-151.0,0.00025954,7]
[328338477,1717188638473,-164.008862,0.00025954,7]
[328338478,1717188638483,-155.963799,0.00025954,7]
[328338479,1717188638492,-151.0,0.00025954,7]
[328338480,1717188638501,-173.94371,0.00025954,7]
[328338481,1717188638510,-151.0,0.00025954,7]
[328338482,1717188638520,-151.0,0.00025954,7]
[328338483,1717188638529,-699.335087,0.00025954,7]
[328338485,1717188638538,-151.0,0.00025954,7]
[328338486,1717188638547,-699.335087,0.00025954,7]
[328338487,1717188638555,-151.0,0.00025954,7]
[328338488,1717188638565,-152.173746,0.00025954,7]
[328338489,1717188638574,-154.615473,0.00025954,7]
[328338490,1717188638583,-151.0,0.00025954,7]
[328338491,1717188638592,-151.0,0.00025954,7]
[328338492,1717188638602,-298.552805,0.00025954,7]
[328338493,1717188638611,-151.0,0.00025954,7]
[328338494,1717188638620,-158.31215,0.00025954,7]
[328338495,1717188638629,-158.31215,0.00025954,7]
[328338496,1717188638638,-151.0,0.00025954,7]
[328338497,1717188638647,-151.0,0.00025954,7]
[328338498,1717188638656,-151.0,0.00025954,7]
[328338499,1717188638666,-151.0,0.00025954,7]
[328338500,1717188638675,-4373.422989,0.00025954,7]
[328338501,1717188638684,-4373.422989,0.00025954,7]
[328338502,1717188638693,-226.2,0.00026018,2]
[328338503,1717188638702,-509.72,0.00026147,2]
[328338504,1717188638711,-182.73,0.00026242,2]
[328338505,1717188638721,-151.0,0.00026329,7]
[328338506,1717188638730,-157.011782,0.00026329,7]
[328338507,1717188638739,-151.0,0.00026329,7]
[328338508,1717188638752,-11599.63,0.00026329,2]
[328338509,1717188638761,-455.08,0.00026387,2]
[328338510,1717188638770,-251.23012888,0.00027764,2]
[328338511,1717188638779,-188.522988,0.00027765,7]
[328338512,1717188638790,-151.0,0.00027765,7]
[328338513,1717188638799,-1074.93081204,0.00027765,2]
[328338514,1717188638808,-12510.1844776,0.00027765,2]
[328338515,1717188638818,-206.98536327,0.00028071,2]
[328338516,1717188638830,-1295.08,0.00028171,2]
[328338517,1717188638840,-155.75,0.00028566,2]
[328338518,1717188638850,-455.08,0.00028651,2]
[328338519,1717188638859,-155.75,0.00029063,2]
[328338520,1717188638869,-967.13216824,0.00029123,2]
[328338521,1717188638878,-757.38,0.00029156,2]
[328338522,1717188638887,-182.73,0.00029522,2]
[328338523,1717188638896,-155.75,0.00029559,2]
[328338524,1717188638905,-1074.93081204,0.00029577,2]
[328338525,1717188638915,-12510.1844776,0.00029577,2]
[328338526,1717188638924,-151.0,0.00029577,7]
[328338527,1717188638933,-151.0,0.00029577,7]
[328338528,1717188638942,-151.0,0.00029577,7]
[328338529,1717188638951,-151.0,0.00029577,7]
[328338530,1717188638961,-151.0,0.00029577,7]
[328338531,1717188638969,-151.0,0.00029577,7]
[328338532,1717188638979,-174.793778,0.00029577,7]
[328338533,1717188638989,-168.35,0.0002974,2]
[328338534,1717188638998,-155.75,0.00030055,2]
[328338535,1717188639007,-151.0,0.00030145,7]
[328338536,1717188639016,-151.0,0.00030145,7]
[328338537,1717188639026,-151.0,0.00030145,7]
[328338538,1717188639035,-151.0,0.00030145,7]
[328338539,1717188639044,-151.0,0.00030145,7]
[328338540,1717188639053,-151.0,0.00030145,7]
[328338541,1717188639063,-151.0,0.00030145,7]
[328338542,1717188639072,-151.0,0.00030145,7]
[328338543,1717188639081,-151.0,0.00030145,7]
[328338544,1717188639090,-151.0,0.00030145,7]
[328338545,1717188639100,-163.44081,0.00030145,7]
[328338546,1717188639109,-151.0,0.00030145,7]
[328338547,1717188639117,-151.0,0.00030145,7]
[328338548,1717188639127,-151.0,0.00030145,7]
[328338549,1717188639136,-1295.08,0.00030911,2]
[328338550,1717188639145,-455.08,0.00030915,2]
[328338551,1717188639155,-150.05942183,0.0003101,7]
[328338552,1717188639164,-153.0797593,0.00031195,7]
[328338553,1717188639173,-151.0,0.00031388,7]
[328338554,1717188639182,-151.0,0.00031388,7]
[328338555,1717188639191,-151.0,0.00031388,7]
[328338556,1717188639200,-158.31215,0.00031388,7]
[328338557,1717188639210,-158.31215,0.00031388,7]
[328338558,1717188639219,-151.0,0.00031388,7]
[328338559,1717188639228,-151.0,0.00031388,7]
[328338560,1717188639237,-151.0,0.00031388,7]
[328338561,1717188639246,-151.0,0.00031388,7]
[328338562,1717188639256,-4373.422989,0.00031388,7]
[328338563,1717188639265,-4373.422989,0.00031388,7]
[328338564,1717188639275,-1074.93081204,0.00031388,10]
[328338565,1717188639284,-12510.1844776,0.00031388,10]
[328338566,1717188639293,-10677.48984333,0.000315,4]
[328338567,1717188639302,-152.841443,0.000315,7]
[328338568,1717188639311,-151.0,0.000315,7]
[328338569,1717188639320,-151.0,0.000315,7]
[328338570,1717188639330,-152.046504,0.000315,7]
[328338571,1717188639339,-151.0,0.000315,7]
[328338572,1717188639349,-151.0,0.000315,7]
[328338573,1717188639358,-151.0,0.00031629,7]
[328338574,1717188639367,-151.0,0.00031629,7]
[328338575,1717188639376,-296.224106,0.00031629,7]
[328338576,1717188639385,-527.98,0.00031683,2]
[328338577,1717188639395,-152.72526121,0.00031804,7]
[328338578,1717188639404,-300.0,0.000319,11]
[328338579,1717188639413,-151.19,0.0003199,2]
[328338580,1717188639422,-700.0,0.00032,11]
[328338581,1717188639431,-151.0,0.00032,7]
[328338582,1717188639440,-151.0,0.00032,7]
[328338583,1717188639449,-227.542335,0.00032,7]
[328338584,1717188639458,-154.53665003,0.00032092,7]
[328338585,1717188639468,-1000.0,0.000321,11]
[328338586,1717188639477,-1400.0,0.000322,11]
[328338587,1717188639487,-1700.0,0.000323,11]
[328338588,1717188639497,-933.02853,0.0003234,2]
[328338589,1717188639506,-4493.96889524,0.0003236,2]
[328338590,1717188639515,-151.0,0.0003236,7]
[328338591,1717188639524,-284.562363,0.0003236,7]
[328338592,1717188639533,-151.0,0.0003236,7]
[328338593,1717188639542,-151.0,0.0003236,7]
[328338594,1717188639551,-190.624886,0.0003236,7]
[328338595,1717188639561,-190.624886,0.0003236,7]
[328338596,1717188639570,-151.0,0.0003236,7]
[328338597,1717188639579,-151.0,0.0003236,7]
[328338598,1717188639588,-154.630307,0.0003236,7]
[328338599,1717188639598,-699.335087,0.0003236,7]
[328338600,1717188639608,-151.0,0.0003236,7]
[328338601,1717188639617,-699.335087,0.0003236,7]
[328338602,1717188639628,-151.0,0.0003236,7]
[328338603,1717188639637,-300.0,0.000324,11]
[328338604,1717188639647,-152.98006228,0.00032459,7]
[328338605,1717188639656,-150.05942183,0.00032487,7]
[328338606,1717188639666,-300.0,0.000325,11]
[328338607,1717188639675,-412.45466168,0.00032539,2]
[328338608,1717188639684,-1440.16,0.00032548,30]
[328338609,1717188639693,-300.0,0.000326,11]
[328338610,1717188639702,-500.0,0.00032677,2]
[328338611,1717188639712,-162.57544654,0.00032679,10]
[328338612,1717188639722,-300.0,0.000327,11]
[328338613,1717188639731,-1653.06107399,0.00032776,4]
[328338614,1717188639741,-166.73515782,0.00032776,2]
[328338615,1717188639755,-206.98536326,0.00032776,6]
[328338616,1717188639764,-171.23738953,0.00032776,4]
[328338617,1717188639774,-152.98006228,0.00032778,7]
[328338618,1717188639784,-800.0,0.000328,11]
[328338619,1717188639794,-182.73,0.00032802,2]
[328338620,1717188639804,-1653.06107394,0.00032815,4]
[328338621,1717188639813,-214.27,0.00032822,2]
[328338622,1717188639824,-1653.06107394,0.00032853,4]
[328338623,1717188639974,-150.0,0.00032857,2]
[328338624,1717188639985,-49513.0666399,0.00032865,2]
[328338625,1717188639995,-151.0,0.00032865,7]
[328338626,1717188640006,-152.338886,0.00032865,7]
[328338627,1717188640015,-151.0,0.00032865,7]
[328338628,1717188640024,-158.31215,0.00032865,7]
[328338629,1717188640034,-158.31215,0.00032865,7]
[328338630,1717188640044,-151.0,0.00032865,7]
[328338631,1717188640053,-168.104128,0.00032865,7]
[328338632,1717188640062,-4373.422989,0.00032865,7]
[328338633,1717188640072,-4373.422989,0.00032865,7]
[328338634,1717188640082,-301.0,0.00032876,5]
[328338635,1717188640091,-15714.1986317,0.00032876,11]
[328338636,1717188640107,-21243.620527,0.00032876,11]
[328338637,1717188640119,-138632.03031918,0.00032876,11]
[328338638,1717188640129,-447.30327148,0.00032876,11]
[328338639,1717188640139,-2000.0,0.00032876,2]
[328338640,1717188640149,-500.0,0.00032876,11]
[328338641,1717188640163,-500.0,0.00032876,11]
[328338642,1717188640173,-500.0,0.00032876,11]
[328338643,1717188640182,-500.0,0.00032876,11]
[328338644,1717188640192,-500.0,0.00032876,11]
[328338645,1717188640201,-500.0,0.00032876,11]
[328338646,1717188640211,-500.0,0.00032876,11]
[328338647,1717188640220,-500.0,0.00032876,11]
[328338648,1717188640229,-344.57874413,0.00032876,11]
[328338649,1717188640238,-500.0,0.00032876,11]
[328338650,1717188640247,-500.0,0.00032876,11]
[328338651,1717188640256,-362.82670474,0.00032876,11]
[328338652,1717188640266,-500.0,0.00032876,11]
[328338653,1717188640275,-500.0,0.00032876,11]
[328338654,1717188640284,-500.0,0.00032876,11]
[328338655,1717188640293,-500.0,0.00032876,11]
[328338656,1717188640303,-500.0,0.00032876,11]
[328338657,1717188640312,-499.16767919,0.00032876,11]
[328338658,1717188640321,-151.0,0.00032876,7]
[328338659,1717188640330,-151.0,0.00032876,7]
[328338660,1717188640339,-151.0,0.00032876,7]
[328338661,1717188640349,-151.0,0.00032876,7]
[328338662,1717188640358,-151.0,0.00032876,7]
[328338663,1717188640367,-151.0,0.00032876,7]
[328338664,1717188640376,-288.98503,0.00032876,7]
[328338665,1717188640385,-151.0,0.00032876,7]
[328338666,1717188640393,-479.88120003,0.00032876,11]
[328338667,1717188640403,-500.0,0.00032876,11]
[328338668,1717188640416,-304.38028085,0.00032876,11]
[328338669,1717188640425,-151.762666,0.00032876,7]
[328338670,1717188640434,-151.0,0.00032876,7]
[328338671,1717188640443,-151.0,0.00032876,7]
[328338672,1717188640452,-189.357145,0.00032876,7]
[328338673,1717188640461,-500.0,0.00032876,11]
[328338674,1717188640470,-500.0,0.00032876,11]
[328338675,1717188640479,-502.8616289,0.00032876,11]
[328338676,1717188640488,-211.66288388,0.00032876,11]
[328338677,1717188640497,-504.61014661,0.00032876,11]
[328338678,1717188640507,-500.0,0.00032876,11]
[328338679,1717188640515,-151.0,0.00032876,7]
[328338680,1717188640524,-500.0,0.00032876,11]
[328338681,1717188640533,-284.8,0.00032876,11]
[328338682,1717188640543,-500.0,0.00032876,11]
[328338683,1717188640551,-506.52622641,0.00032876,11]
[328338684,1717188640560,-500.0,0.00032876,11]
[328338685,1717188640569,-500.0,0.00032876,11]
[328338686,1717188640579,-179.51,0.00032876,11]
[328338687,1717188640589,-500.0,0.00032876,11]
[328338688,1717188640601,-500.0,0.00032876,11]
[328338689,1717188640610,-453.16,0.00032876,11]
[328338690,1717188640619,-500.0,0.00032876,11]
[328338691,1717188640628,-500.0,0.00032876,11]
[328338692,1717188640638,-201.72,0.00032876,11]
[328338693,1717188640647,-500.0,0.00032876,11]
[328338694,1717188640656,-500.0,0.00032876,11]
[328338695,1717188640665,-579.35,0.00032876,11]
[328338696,1717188640674,-500.0,0.00032876,11]
[328338697,1717188640683,-386.9,0.00032876,11]
[328338698,1717188640702,-500.0,0.00032876,11]
[328338699,1717188640714,-500.0,0.00032876,11]
[328338700,1717188640724,-224.01,0.00032876,11]
[328338701,1717188640734,-472.56,0.00032876,11]
[328338702,1717188640745,-500.0,0.00032876,11]
[328338703,1717188640757,-500.0,0.00032876,11]
[328338704,1717188640768,-500.0,0.00032876,11]
[328338705,1717188640778,-500.0,0.00032876,11]
[328338706,1717188640788,-500.0,0.00032876,11]
[328338707,1717188640798,-528.5934403,0.00032876,11]
[328338708,1717188640808,-604.13,0.00032876,11]
[328338709,1717188640817,-151.0,0.00032876,7]
[328338710,1717188640830,-151.0,0.00032876,7]
[328338711,1717188640841,-151.0,0.00032876,7]
[328338712,1717188640851,-151.0,0.00032876,7]
[328338713,1717188640861,-151.0,0.00032876,7]
[328338714,1717188640870,-151.0,0.00032876,7]
[328338715,1717188640880,-151.0,0.00032876,7]
[328338716,1717188640890,-151.0,0.00032876,7]
[328338717,1717188640899,-181.830208,0.00032876,7]
[328338718,1717188640909,-151.0,0.00032876,7]
[328338719,1717188640919,-151.0,0.00032876,7]
[328338720,1717188640928,-151.0,0.00032876,7]
[328338721,1717188640937,-151.0,0.00032876,7]
[328338722,1717188640947,-151.0,0.00032876,7]
[328338723,1717188640957,-151.0,0.00032876,7]
[328338724,1717188640966,-173.549648,0.00032876,7]
[328338725,1717188640976,-500.0,0.00032876,11]
[328338726,1717188640986,-500.0,0.00032876,11]
[328338727,1717188640996,-500.0,0.00032876,11]
[328338728,1717188641005,-500.0,0.00032876,11]
[328338729,1717188641015,-500.0,0.00032876,11]
[328338730,1717188641024,-449.90432738,0.00032876,11]
[328338731,1717188641033,-500.0,0.00032876,11]
[328338732,1717188641042,-600.24,0.00032876,11]
[328338733,1717188641053,-354.53,0.00032876,11]
[328338734,1717188641063,-151.0,0.00032876,7]
[328338735,1717188641072,-517.34463882,0.00032876,11]
[328338736,1717188641084,-426.37181824,0.00032876,7]
[328338737,1717188641094,-500.0,0.00032876,11]
[328338738,1717188641105,-500.0,0.00032876,11]
[328338739,1717188641114,-308.61,0.00032876,11]
[328338740,1717188641124,-500.0,0.00032876,11]
[328338741,1717188641134,-500.0,0.00032876,11]
[328338742,1717188641146,-500.0,0.00032876,11]
[328338743,1717188641155,-500.0,0.00032876,11]
[328338744,1717188641164,-500.0,0.00032876,11]
[328338745,1717188641173,-151.0,0.00032876,7]
[328338746,1717188641182,-500.0,0.00032876,11]
[328338747,1717188641191,-151.0,0.00032876,7]
[328338748,1717188641200,-500.0,0.00032876,11]
[328338749,1717188641209,-500.0,0.00032876,11]
[328338750,1717188641219,-414.53,0.00032876,11]
[328338751,1717188641228,-500.0,0.00032876,11]
[328338752,1717188641237,-155.297865,0.00032876,7]
[328338753,1717188641247,-508.72,0.00032876,11]
[328338754,1717188641256,-300.57766583,0.00032876,11]
[328338755,1717188641266,-500.0,0.00032876,11]
[328338756,1717188641275,-208.495012,0.00032876,7]
[328338757,1717188641284,-499.97749856,0.00032876,11]
[328338758,1717188641294,-500.0,0.00032876,11]
[328338759,1717188641302,-500.0,0.00032876,11]
[328338760,1717188641315,-500.0,0.00032876,11]
[328338761,1717188641324,-500.0,0.00032876,11]
[328338762,1717188641334,-500.0,0.00032876,11]
[328338763,1717188641343,-500.0,0.00032876,11]
[328338764,1717188641353,-500.0,0.00032876,11]
[328338765,1717188641362,-481.18,0.00032876,11]
[328338766,1717188641372,-151.0,0.00032876,7]
[328338767,1717188641382,-151.0,0.00032876,7]
[328338768,1717188641391,-151.0,0.00032876,7]